fUSD/lending_fUSD_20250623
["ID","MTS","AMOUNT","RATE_DAILY","PERIOD"]
[367121135,1750662788637,-620.28,0.00032602,3]
[367121136,1750662788647,-692.18,0.00032602,3]
[367121137,1750662788657,-583.42,0.00032602,3]
[367121138,1750662788666,-1382.11,0.00032602,3]
[367121139,1750662788676,-957.53,0.00032602,3]
[367121140,1750662788685,-1520.85,0.00032602,3]
[367121141,1750662788695,-852.4,0.00032602,3]
[367121142,1750662788706,-1514.64,0.00032602,3]
[367121143,1750662788715,-564.98,0.00032602,3]
[367121144,1750662788725,-1413.76,0.00032602,3]
[367121145,1750662788735,-621.88,0.00032602,3]
[367121146,1750662788745,-1486.85,0.00032602,3]
[367121147,1750662788755,-643.76,0.00032602,3]
[367121148,1750662788765,-605.57,0.00032602,3]
[367121149,1750662788774,-765.6,0.00032602,3]
[367121150,1750662788785,-635.87,0.00032602,3]
[367121151,1750662788795,-748.29,0.00032602,3]
[367121152,1750662788804,-490.0,0.00032602,3]
[367121153,1750662788814,-559.87,0.00032602,3]
[367121154,1750662788824,-521.1,0.00032602,3]
[367121155,1750662788834,-702.32,0.00032602,3]
[367121156,1750662788844,-1437.96,0.00032602,3]
[367121157,1750662788854,-933.29,0.00032602,3]
[367121158,1750662788864,-623.74,0.00032602,3]
[367121159,1750662788874,-1229.23,0.00032602,3]
[367121160,1750662788884,-1240.62,0.00032602,3]
[367121161,1750662788894,-490.0,0.00032602,3]
[367121162,1750662788904,-1044.91,0.00032602,3]
[367121163,1750662788914,-636.16,0.00032602,3]
[367121164,1750662788924,-490.92,0.00032602,3]
[367121165,1750662788933,-583.46,0.00032602,3]
[367121166,1750662788944,-1648.05,0.00032602,3]
[367121167,1750662788954,-745.48,0.00032602,3]
[367121168,1750662788964,-1025.74,0.00032602,3]
[367121169,1750662788974,-507.64,0.00032602,3]
[367121170,1750662788984,-1776.13,0.00032602,3]
[367121171,1750662788994,-1819.02,0.00032602,3]
[367121172,1750662789004,-803.35,0.00032602,3]
[367121173,1750662789014,-1305.95,0.00032602,3]
[367121174,1750662789024,-1801.52,0.00032602,3]
[367121175,1750662789034,-825.12,0.00032602,3]
[367121176,1750662789045,-553.17,0.00032602,3]
[367121177,1750662789056,-1449.74,0.00032602,3]
[367121178,1750662789067,-1184.6,0.00032602,3]
[367121179,1750662789077,-2077.31,0.00032602,3]
[367121180,1750662789088,-903.1,0.00032602,3]
[367121181,1750662789098,-1228.76,0.00032602,3]
[367121182,1750662789108,-840.82,0.00032602,3]
[367121183,1750662789120,-972.48,0.00032602,3]
[367121184,1750662789130,-490.0,0.00032602,3]
[367121185,1750662789140,-698.82,0.00032602,3]
[367121186,1750662789150,-1683.09,0.00032602,3]
[367121187,1750662789160,-614.18,0.00032602,3]
[367121188,1750662789171,-1017.63,0.00032602,3]
[367121189,1750662789182,-1068.5,0.00032602,3]
[367121190,1750662789192,-899.45,0.00032602,3]
[367121191,1750662789203,-1018.31,0.00032602,3]
[367121192,1750662789212,-1034.85,0.00032602,3]
[367121193,1750662789223,-1636.32,0.00032602,3]
[367121194,1750662789233,-636.43,0.00032602,3]
[367121195,1750662789243,-514.73,0.00032602,3]
[367121196,1750662789253,-1597.54,0.00032602,3]
[367121197,1750662789263,-878.08,0.00032602,3]
[367121198,1750662789273,-933.44,0.00032602,3]
[367121199,1750662789284,-980.14,0.00032602,3]
[367121200,1750662789294,-1351.29,0.00032602,3]
[367121201,1750662789304,-490.0,0.00032602,3]
[367121202,1750662789314,-1021.72,0.00032602,3]
[367121203,1750662789324,-490.0,0.00032602,3]
[367121204,1750662789334,-2515.92,0.00032602,3]
[367121205,1750662789345,-973.74,0.00032602,3]
[367121206,1750662789356,-563.49,0.00032602,3]
[367121207,1750662789366,-718.42,0.00032602,3]
[367121208,1750662789377,-490.0,0.00032602,3]
[367121209,1750662789387,-763.59,0.00032602,3]
[367121210,1750662789397,-1171.08,0.00032602,3]
[367121211,1750662789408,-806.32,0.00032602,3]
[367121212,1750662789418,-1313.3,0.00032602,3]
[367121213,1750662789429,-1866.63,0.00032602,3]
[367121214,1750662789439,-783.39,0.00032602,3]
[367121215,1750662789450,-1408.5,0.00032602,3]
[367121216,1750662789464,-760.51,0.00032602,3]
[367121217,1750662789475,-640.07,0.00032602,3]
[367121218,1750662789485,-1113.91,0.00032602,3]
[367121219,1750662789496,-1204.57,0.00032602,3]
[367121220,1750662789507,-1615.12,0.00032602,3]
[367121221,1750662789518,-852.31,0.00032602,3]
[367121222,1750662789529,-1617.57,0.00032602,3]
[367121223,1750662789540,-1344.16,0.00032602,3]
[367121224,1750662789552,-1189.28,0.00032602,3]
[367121225,1750662789562,-924.24,0.00032602,3]
[367121226,1750662789572,-1017.87,0.00032602,3]
[367121227,1750662789582,-1327.65,0.00032602,3]
[367121228,1750662789592,-816.97,0.00032602,3]
[367121229,1750662789602,-1505.21,0.00032602,3]
[367121230,1750662789613,-1444.07,0.00032602,3]
[367121231,1750662789623,-490.0,0.00032602,3]
[367121232,1750662789634,-995.43,0.00032602,3]
[367121233,1750662789644,-3010.94,0.00032602,2]
[367121234,1750662789654,-1097.45,0.00032602,3]
[367121235,1750662789664,-151.35830907,0.00032602,3]
[367121236,1750662789676,-753.53,0.00032602,3]
[367121237,1750662789686,-1037.06,0.00032602,3]
[367121238,1750662789696,-1995.53,0.00032602,3]
[367121239,1750662789706,-490.0,0.00032602,3]
[367121240,1750662789716,-752.2,0.00032602,3]
[367121241,1750662789727,-660.48,0.00032602,3]
[367121242,1750662789737,-1341.44,0.00032602,3]
[367121243,1750662789748,-850.05,0.00032602,3]
[367121244,1750662789758,-581.79,0.00032602,3]
[367121245,1750662789768,-2153.23,0.00032602,3]
[367121246,1750662789778,-557.61,0.00032602,3]
[367121247,1750662789789,-507.29,0.00032602,3]
[367121248,1750662789799,-572.59,0.00032602,3]
[367121249,1750662789809,-2413.05,0.00032602,3]
[367121250,1750662789819,-1348.78,0.00032602,3]
[367121251,1750662789830,-2316.4,0.00032602,3]
[367121252,1750662789840,-566.43,0.00032602,3]
[367121253,1750662789849,-1609.27,0.00032602,3]
[367121254,1750662789860,-490.0,0.00032602,3]
[367121255,1750662789870,-569.99,0.00032602,3]
[367121256,1750662789880,-490.0,0.00032602,3]
[367121257,1750662789891,-490.0,0.00032602,3]
[367121258,1750662789901,-2663.87,0.00032602,3]
[367121259,1750662789911,-731.27,0.00032602,3]
[367121260,1750662789921,-861.6,0.00032602,3]
[367121261,1750662789931,-560.0,0.00032602,3]
[367121262,1750662789941,-921.04,0.00032602,3]
[367121263,1750662789951,-783.55,0.00032602,3]
[367121264,1750662789961,-600.11,0.00032602,3]
[367121265,1750662789971,-1052.0,0.00032602,3]
[367121266,1750662789982,-616.55,0.00032602,3]
[367121267,1750662789992,-1117.5,0.00032602,3]
[367121268,1750662790001,-785.27,0.00032602,3]
[367121269,1750662790012,-595.61,0.00032602,3]
[367121270,1750662790022,-950.58,0.00032602,3]
[367121271,1750662790032,-1688.41,0.00032602,3]
[367121272,1750662790042,-1953.41,0.00032602,3]
[367121273,1750662790052,-1726.17,0.00032602,3]
[367121274,1750662790061,-1456.32,0.00032602,3]
[367121275,1750662790071,-1698.32,0.00032602,3]
[367121276,1750662790081,-603.07,0.00032602,3]
[367121277,1750662790090,-1007.06,0.00032602,3]
[367121278,1750662790100,-1681.01,0.00032602,3]
[367121279,1750662790110,-1708.4,0.00032602,3]
[367121280,1750662790120,-873.29,0.00032602,3]
[367121281,1750662790130,-1098.59,0.00032602,3]
[367121282,1750662790140,-1944.53,0.00032602,3]
[367121283,1750662790150,-490.0,0.00032602,3]
[367121284,1750662790160,-2433.81,0.00032602,3]
[367121285,1750662790170,-577.0,0.00032602,3]
[367121286,1750662790180,-750.42,0.00032602,3]
[367121287,1750662790191,-662.45,0.00032602,3]
[367121288,1750662790200,-501.38,0.00032602,3]
[367121289,1750662790211,-1247.14,0.00032602,3]
[367121290,1750662790221,-1551.77,0.00032602,3]
[367121291,1750662790438,-1650.44,0.00032602,3]
[367121292,1750662790468,-529.91,0.00032602,3]
[367121293,1750662790478,-490.0,0.00032602,3]
[367121294,1750662790488,-788.62,0.00032602,3]
[367121295,1750662790498,-912.47,0.00032602,3]
[367121296,1750662790508,-1251.29,0.00032602,3]
[367121297,1750662790517,-655.66,0.00032602,3]
[367121298,1750662790527,-703.59,0.00032602,3]
[367121299,1750662790539,-675.57,0.00032602,3]
[367121300,1750662790549,-1664.2,0.00032602,3]
[367121301,1750662790559,-1433.27,0.00032602,3]
[367121302,1750662790568,-1679.9,0.00032602,3]
[367121303,1750662790578,-1066.4,0.00032602,3]
[367121304,1750662790588,-490.0,0.00032602,3]
[367121305,1750662790597,-572.95,0.00032602,3]
[367121306,1750662790606,-291.7083233,0.00032602,3]
[367121307,1750662790618,-1605.51,0.00032602,3]
[367121308,1750662790628,-1690.95,0.00032602,3]
[367121309,1750662790638,-626.36394259,0.00032602,3]
[367121310,1750662790647,-490.0,0.00032602,3]
[367121311,1750662790657,-1674.28,0.00032602,3]
[367121312,1750662790666,-638.77,0.00032602,3]
[367121313,1750662790676,-1574.11,0.00032602,3]
[367121314,1750662790687,-378.81,0.00032602,3]
[367121315,1750662790696,-684.38,0.00032602,3]
[367121316,1750662790706,-1278.36,0.00032602,3]
[367121317,1750662790715,-905.6,0.00032602,3]
[367121318,1750662790725,-1682.39,0.00032602,3]
[367121319,1750662790735,-1126.22,0.00032602,3]
[367121320,1750662790745,-1883.69,0.00032602,3]
[367121321,1750662790754,-7415.21,0.00032602,3]
[367121322,1750662790763,-1410.38,0.00032602,3]
[367121323,1750662790773,-2332.56,0.00032602,3]
[367121324,1750662790782,-1449.04,0.00032602,3]
[367121325,1750662790791,-849.69,0.00032602,3]
[367121326,1750662790800,-883.32,0.00032602,3]
[367121327,1750662790810,-1248.93,0.00032602,3]
[367121328,1750662790819,-587.88,0.00032602,3]
[367121329,1750662790829,-901.3,0.00032602,3]
[367121330,1750662790838,-1164.04,0.00032602,3]
[367121331,1750662790848,-1753.14,0.00032602,3]
[367121332,1750662790857,-10399.38,0.00032602,3]
[367121333,1750662790866,-4073.96,0.00032602,3]
[367121334,1750662790875,-580.67,0.00032602,3]
[367121335,1750662790885,-1448.46,0.00032602,3]
[367121336,1750662790894,-836.73,0.00032602,3]
[367121337,1750662790903,-918.93,0.00032602,3]
[367121338,1750662790913,-1355.08,0.00032602,3]
[367121339,1750662790922,-1900.51,0.00032602,3]
[367121340,1750662790933,-526.35,0.00032602,3]
[367121341,1750662790943,-6824.52,0.00032602,3]
[367121342,1750662790952,-1016.76,0.00032602,3]
[367121343,1750662790962,-3401.6,0.00032602,3]
[367121344,1750662790971,-3966.47,0.00032602,3]
[367121345,1750662790980,-490.0,0.00032602,3]
[367121346,1750662790990,-529.3426962,0.00032602,3]
[367121347,1750662790999,-909.73,0.00032602,3]
[367121348,1750662791008,-934.07,0.00032602,3]
[367121349,1750662791018,-4949.36,0.00032602,3]
[367121350,1750662791027,-2915.88,0.00032602,3]
[367121351,1750662791036,-1741.72,0.00032602,3]
[367121352,1750662791045,-1585.93,0.00032602,3]
[367121353,1750662791053,-490.0,0.00032602,3]
[367121354,1750662791062,-443.67731638,0.00032602,3]
[367121355,1750662791072,-608.52,0.00032602,3]
[367121356,1750662791081,-18062.45,0.00032602,3]
[367121357,1750662791090,-3468.99,0.00032602,3]
[367121358,1750662791099,-1570.58,0.00032602,3]
[367121359,1750662791109,-1672.97,0.00032602,3]
[367121360,1750662791118,-789.6,0.00032602,3]
[367121361,1750662791127,-798.22,0.00032602,3]
[367121362,1750662791137,-1533.06,0.00032602,3]
[367121363,1750662791147,-1681.4,0.00032602,3]
[367121364,1750662791156,-814.19,0.00032602,3]
[367121365,1750662791165,-528.64,0.00032602,3]
[367121366,1750662791175,-1108.02,0.00032602,3]
[367121367,1750662791185,-1980.76,0.00032602,3]
[367121368,1750662791195,-2594.4,0.00032602,3]
[367121369,1750662791205,-423.50702836,0.00032602,3]
[367121370,1750662791215,-1623.55,0.00032602,3]
[367121371,1750662791224,-490.0,0.00032602,3]
[367121372,1750662791234,-891.21,0.00032602,3]
[367121373,1750662791244,-1019.18,0.00032602,3]
[367121374,1750662791254,-1174.99,0.00032602,3]
[367121375,1750662791264,-3127.29,0.00032602,3]
[367121376,1750662791274,-1569.21,0.00032602,3]
[367121377,1750662791283,-1940.59,0.00032602,3]
[367121378,1750662791293,-664.92,0.00032602,3]
[367121379,1750662791302,-2329.34,0.00032602,3]
[367121380,1750662791311,-1830.85,0.00032602,3]
[367121381,1750662791321,-1700.21,0.00032602,3]
[367121382,1750662791330,-2769.81,0.00032602,3]
[367121383,1750662791340,-6713.02,0.00032602,3]
[367121384,1750662791350,-777.56,0.00032602,3]
[367121385,1750662791359,-744.42,0.00032602,3]
[367121386,1750662791369,-2394.73,0.00032602,3]
[367121387,1750662791378,-826.09,0.00032602,3]
[367121388,1750662791388,-1294.78,0.00032602,3]
[367121389,1750662791397,-490.0,0.00032602,3]
[367121390,1750662791406,-760.04,0.00032602,3]
[367121391,1750662791415,-1749.09,0.00032602,3]
[367121392,1750662791425,-490.0,0.00032602,3]
[367121393,1750662791435,-555.71,0.00032602,3]
[367121394,1750662791445,-1626.24,0.00032602,3]
[367121395,1750662791455,-4056.64,0.00032602,3]
[367121396,1750662791464,-596.78501437,0.00032602,3]
[367121397,1750662791473,-1498.64,0.00032602,3]
[367121398,1750662791483,-1457.21,0.00032602,3]
[367121399,1750662791492,-490.0,0.00032602,3]
[367121400,1750662791501,-737.54,0.00032602,3]
[367121401,1750662791510,-1307.83,0.00032602,3]
[367121402,1750662791520,-728.06,0.00032602,3]
[367121403,1750662791529,-1832.35,0.00032602,3]
[367121404,1750662791540,-1380.67,0.00032602,3]
[367121405,1750662791550,-2228.14,0.00032602,3]
[367121406,1750662791559,-2372.02,0.00032602,3]
[367121407,1750662791568,-3318.96,0.00032602,3]
[367121408,1750662791578,-709.01,0.00032602,3]
[367121409,1750662791587,-862.45,0.00032602,3]
[367121410,1750662791597,-788.8,0.00032602,3]
[367121411,1750662791607,-1200.13,0.00032602,3]
[367121412,1750662791616,-1916.86,0.00032602,3]
[367121413,1750662791626,-678.77,0.00032602,3]
[367121414,1750662791635,-4654.08,0.00032602,3]
[367121415,1750662791644,-1366.52,0.00032602,3]
[367121416,1750662791654,-788.62,0.00032602,3]
[367121417,1750662791663,-515.04,0.00032602,3]
[367121418,1750662791672,-553.78,0.00032602,3]
[367121419,1750662791683,-1107.26,0.00032602,3]
[367121420,1750662791692,-498.97,0.00032602,3]
[367121421,1750662791701,-7394.17,0.00032602,3]
[367121422,1750662791711,-1624.99,0.00032602,3]
[367121423,1750662791719,-1578.33,0.00032602,3]
[367121424,1750662791729,-2834.49,0.00032602,3]
[367121425,1750662791738,-1036.64,0.00032602,3]
[367121426,1750662791747,-12536.04,0.00032602,3]
[367121427,1750662791757,-3543.99,0.00032602,3]
[367121428,1750662791766,-1768.62,0.00032602,3]
[367121429,1750662791775,-497.45,0.00032602,3]
[367121430,1750662791784,-1619.96,0.00032602,3]
[367121431,1750662791793,-510.41,0.00032602,3]
[367121432,1750662791802,-5190.35,0.00032602,3]
[367121433,1750662791811,-9852.89,0.00032602,3]
[367121434,1750662791821,-490.0,0.00032602,3]
[367121435,1750662791830,-1552.44,0.00032602,3]
[367121436,1750662791839,-814.87,0.00032602,3]
[367121437,1750662791849,-2783.14,0.00032602,3]
[367121438,1750662791858,-510.26,0.00032602,3]
[367121439,1750662791868,-1717.08,0.00032602,3]
[367121440,1750662791877,-1947.91,0.00032602,3]
[367121441,1750662791886,-1630.26,0.00032602,3]
[367121442,1750662791896,-2330.84,0.00032602,3]
[367121443,1750662791905,-752.02,0.00032602,3]
[367121444,1750662791915,-1618.67,0.00032602,3]
[367121445,1750662791925,-278.76900746,0.00032602,3]
[367121446,1750662791936,-1776.65,0.00032602,3]
[367121447,1750662791946,-915.84,0.00032602,3]
[367121448,1750662791956,-1151.97,0.00032602,3]
[367121449,1750662791965,-670.37,0.00032602,3]
[367121450,1750662791975,-1591.01,0.00032602,3]
[367121451,1750662791985,-3986.65,0.00032602,3]
[367121452,1750662791994,-6065.53,0.00032602,3]
[367121453,1750662792004,-1642.63,0.00032602,3]
[367121454,1750662792013,-1605.38,0.00032602,3]
[367121455,1750662792023,-1960.82,0.00032602,3]
[367121456,1750662792032,-798.12,0.00032602,3]
[367121457,1750662792042,-1292.66,0.00032602,3]
[367121458,1750662792051,-2292.5,0.00032602,3]
[367121459,1750662792060,-2903.63,0.00032602,3]
[367121460,1750662792070,-1562.1,0.00032602,3]
[367121461,1750662792079,-4219.23,0.00032602,3]
[367121462,1750662792097,-765.43,0.00032602,3]
[367121463,1750662792113,-1872.32,0.00032602,3]
[367121464,1750662792130,-3240.53,0.00032602,3]
[367121465,1750662792151,-492.32,0.00032602,3]
[367121466,1750662792167,-1499.13,0.00032602,3]
[367121467,1750662792186,-1684.89,0.00032602,3]
[367121468,1750662792205,-1822.31,0.00032602,3]
[367121469,1750662792226,-2262.37,0.00032602,3]
[367121470,1750662792245,-745.32,0.00032602,3]
[367121471,1750662792264,-1565.33,0.00032602,3]
[367121472,1750662792284,-1599.78,0.00032602,3]
[367121473,1750662792298,-3248.59,0.00032602,3]
[367121474,1750662792319,-795.18,0.00032602,3]
[367121475,1750662792334,-638.67,0.00032602,3]
[367121476,1750662792354,-8785.1,0.00032602,3]
[367121477,1750662792375,-849.6,0.00032602,3]
[367121478,1750662792391,-1787.94,0.00032602,3]
[367121479,1750662792407,-1444.68,0.00032602,3]
[367121480,1750662792423,-1335.88,0.00032602,3]
[367121481,1750662792438,-948.02,0.00032602,3]
[367121482,1750662792453,-490.0,0.00032602,3]
[367121483,1750662792469,-1583.66,0.00032602,3]
[367121484,1750662792485,-507.9,0.00032602,3]
[367121485,1750662792501,-3963.91,0.00032602,3]
[367121486,1750662792517,-1578.99,0.00032602,3]
[367121487,1750662792534,-1445.82,0.00032602,3]
[367121488,1750662792552,-1285.59,0.00032602,3]
[367121489,1750662792568,-728.45,0.00032602,3]
[367121490,1750662792584,-806.96,0.00032602,3]
[367121491,1750662792601,-1797.81,0.00032602,3]
[367121492,1750662792617,-1432.05,0.00032602,3]
[367121493,1750662792633,-1831.64,0.00032602,3]
[367121494,1750662792649,-919.07,0.00032602,3]
[367121495,1750662792665,-14900.62,0.00032602,3]
[367121496,1750662792680,-1833.67,0.00032602,3]
[367121497,1750662792696,-2078.39,0.00032602,3]
[367121498,1750662792712,-510.45,0.00032602,3]
[367121499,1750662792728,-4833.93,0.00032602,3]
[367121500,1750662792744,-1601.31,0.00032602,3]
[367121501,1750662792759,-759.06,0.00032602,3]
[367121502,1750662792775,-873.41,0.00032602,3]
[367121503,1750662792791,-4669.42,0.00032602,3]
[367121504,1750662792806,-791.68,0.00032602,3]
[367121505,1750662792821,-1693.53,0.00032602,3]
[367121506,1750662792836,-990.18,0.00032602,3]
[367121507,1750662792852,-1034.99,0.00032602,3]
[367121508,1750662792867,-1620.6,0.00032602,3]
[367121509,1750662792884,-1653.45,0.00032602,3]
[367121510,1750662792899,-1389.7,0.00032602,3]
[367121511,1750662792915,-3451.15,0.00032602,3]
[367121512,1750662792930,-2416.24,0.00032602,3]
[367121513,1750662792946,-993.54,0.00032602,3]
[367121514,1750662792976,-11090.94,0.00032602,3]
[367121515,1750662792992,-1799.28,0.00032602,3]
[367121516,1750662793008,-1701.67,0.00032602,3]
[367121517,1750662793024,-2070.18,0.00032602,3]
[367121518,1750662793040,-1221.42,0.00032602,3]
[367121519,1750662793056,-1378.47,0.00032602,3]
[367121520,1750662793093,-1736.17,0.00032602,3]
[367121521,1750662793108,-1087.15,0.00032602,3]
[367121522,1750662793142,-1834.95,0.00032602,3]
[367121523,1750662793156,-709.09,0.00032602,3]
[367121524,1750662793172,-1672.0,0.00032602,3]
[367121525,1750662793187,-1571.12,0.00032602,3]
[367121526,1750662793203,-1351.61,0.00032602,3]
[367121527,1750662793219,-490.0,0.00032602,3]
[367121528,1750662793233,-4884.01,0.00032602,3]
[367121529,1750662793248,-1816.97,0.00032602,3]
[367121530,1750662793263,-1729.07,0.00032602,3]
[367121531,1750662793277,-8073.75,0.00032602,3]
[367121532,1750662793292,-1652.26,0.00032602,3]
[367121533,1750662793307,-867.32,0.00032602,3]
[367121534,1750662793321,-1482.76,0.00032602,3]
[367121535,1750662793337,-30050.84,0.00032602,3]
[367121536,1750662793352,-1513.2,0.00032602,3]
[367121537,1750662793367,-1869.9,0.00032602,3]
[367121538,1750662793382,-825.47,0.00032602,3]
[367121539,1750662793397,-1291.21,0.00032602,3]
[367121540,1750662793412,-718.8,0.00032602,3]
[367121541,1750662793427,-529.57,0.00032602,3]
[367121542,1750662793442,-1013.98,0.00032602,2]
[367121543,1750662793456,-749.71,0.00032602,3]
[367121544,1750662793472,-2626.45,0.00032602,3]
[367121545,1750662793487,-1301.95,0.00032602,3]
[367121546,1750662793501,-1000.93,0.00032602,3]
[367121547,1750662793516,-914.97,0.00032602,3]
[367121548,1750662793533,-5331.91,0.00032602,3]
[367121549,1750662793547,-6188.74,0.00032602,3]
[367121550,1750662793562,-2204.74,0.00032602,3]
[367121551,1750662793576,-733.17,0.00032602,3]
[367121552,1750662793589,-742.07,0.00032602,3]
[367121553,1750662793604,-1553.91,0.00032602,3]
[367121554,1750662793618,-1201.89,0.00032602,3]
[367121555,1750662793633,-716.87,0.00032602,3]
[367121556,1750662793647,-866.05,0.00032602,3]
[367121557,1750662793662,-346.48,0.00032602,3]
[367121558,1750662793676,-5637.09,0.00032602,3]
[367121559,1750662793692,-1651.87,0.00032602,3]
[367121560,1750662793706,-2465.19,0.00032602,3]
[367121561,1750662793721,-984.57,0.00032602,3]
[367121562,1750662793735,-1607.85,0.00032602,3]
[367121563,1750662793750,-572.05,0.00032602,3]
[367121564,1750662793764,-1536.26,0.00032602,3]
[367121565,1750662793779,-1906.99,0.00032602,3]
[367121566,1750662793794,-1131.73,0.00032602,3]
[367121567,1750662793810,-764.72,0.00032602,3]
[367121568,1750662793825,-2965.58,0.00032602,3]
[367121569,1750662793840,-594.04,0.00032602,3]
[367121570,1750662793854,-1920.56,0.00032602,3]
[367121571,1750662793869,-1258.03765544,0.00032659,27]
[367121572,1750662793884,-151.3,0.00032688,4]
[367121573,1750662793898,-207.0,0.0003274,30]
[367121574,1750662793915,-4682.8656299,0.000328,2]
[367121575,1750662793931,-1224.0,0.00032826,2]
[367121576,1750662793946,-163.31,0.00032847,120]
[367121577,1750662793961,-150.5,0.00032857,120]
[367121578,1750662793975,-5455.753665,0.00032876,3]
[367121579,1750662793989,-151.476984,0.00032876,3]
[367121580,1750662794004,-500.0,0.00032876,14]
[367121581,1750662794019,-906.91,0.00032876,3]
[367121582,1750662794036,-765.27,0.00032876,3]
[367121583,1750662794051,-252.921479,0.00032876,3]
[367121584,1750662794065,-958.78,0.00032876,3]
[367121585,1750662794079,-972.11,0.00032876,3]
[367121586,1750662794094,-548.42,0.00032876,3]
[367121587,1750662794108,-548.42,0.00032876,3]
[367121588,1750662794123,-2591.829598,0.00032876,3]
[367121589,1750662794138,-615.11,0.00032876,3]
[367121590,1750662794152,-804.23,0.00032876,3]
[367121591,1750662794166,-1075.31,0.00032876,3]
[367121592,1750662794181,-692.3,0.00032876,3]
[367121593,1750662794194,-811.41,0.00032876,3]
[367121594,1750662794209,-406.48925547,0.00032876,3]
[367121595,1750662794224,-695.49,0.00032876,3]
[367121596,1750662794240,-490.0,0.00032876,3]
[367121597,1750662794256,-833.21,0.00032876,3]
[367121598,1750662794271,-591.25,0.00032876,3]
[367121599,1750662794286,-977.66,0.00032876,3]
[367121600,1750662794301,-690.16,0.00032876,3]
[367121601,1750662794315,-1109.36,0.00032876,3]
[367121602,1750662794331,-526.92,0.00032876,3]
[367121603,1750662794347,-519.11,0.00032876,3]
[367121604,1750662794363,-490.0,0.00032876,3]
[367121605,1750662794378,-970.12,0.00032876,3]
[367121606,1750662794393,-1478.36,0.00032876,3]
[367121607,1750662794409,-1376.6,0.00032876,3]
[367121608,1750662794424,-889.62,0.00032876,3]
[367121609,1750662794440,-1155.19,0.00032876,3]
[367121610,1750662794455,-404.92549864,0.00032876,3]
[367121611,1750662794470,-495.01,0.00032876,3]
[367121612,1750662794485,-668.52,0.00032876,3]
[367121613,1750662794499,-611.64,0.00032876,3]
[367121614,1750662794514,-698.01,0.00032876,3]
[367121615,1750662794528,-644.39,0.00032876,3]
[367121616,1750662794546,-617.7,0.00032876,3]
[367121617,1750662794561,-826.8,0.00032876,3]
[367121618,1750662794576,-419.27326861,0.00032876,3]
[367121619,1750662794591,-579.77791638,0.00032876,3]
[367121620,1750662794605,-626.46,0.00032876,3]
[367121621,1750662794621,-841.55,0.00032876,3]
[367121622,1750662794636,-625.27,0.00032876,3]
[367121623,1750662794650,-1584.78,0.00032876,3]
[367121624,1750662794665,-490.0,0.00032876,3]
[367121625,1750662794680,-490.0,0.00032876,3]
[367121626,1750662794695,-1089.25,0.00032876,3]
[367121627,1750662794710,-914.26,0.00032876,3]
[367121628,1750662794724,-777.39,0.00032876,3]
[367121629,1750662794738,-667.3,0.00032876,3]
[367121630,1750662794752,-1172.55,0.00032876,3]
[367121631,1750662794767,-857.69,0.00032876,3]
[367121632,1750662794782,-601.26,0.00032876,3]
[367121633,1750662794797,-654.18,0.00032876,3]
[367121634,1750662794811,-1486.14,0.00032876,3]